Cogmind - Beta 12 @@@ ROGUE MODE // 2023.05.14 @ 17:22:05 Player: Mr Goldstein Result: Destroyed by G-67 Veteran with Field Laser Performance ------------- Evolutions (6) 3000 Regions Visited (11) 2200 Robots Destroyed (13) 65 Value Destroyed (538) 538 Prototype IDs (0) 0 Alien Tech Used (0) 0 Bonus (2325) 2325 TOTAL SCORE: 8128 Bonus ------- Pacifist 1325 Entered DSFs 1000 Cogmind --------- Core Integrity 0/1150 Matter 141/300 Energy 98/100 System Corruption 1% Temperature Cool (30) Movement Core (50) Location -4/Extension Parts ------- > --- POWER (1) -------- (None) > --- PROPULSION (2) --- (None) > --- UTILITY (14) ----- Advanced Signal Interpreter Launcher Guidance Computer Launcher Guidance Computer Improved Power Shielding System Shield > --- WEAPON (2) ------- (None) > --- INVENTORY (5) ---- (None) Peak State ------------ > --- POWER ------------ (None) > --- PROPULSION ------- (None) > --- UTILITY ---------- Launcher Guidance Computer Launcher Guidance Computer Improved Power Shielding System Shield > --- WEAPON ----------- Heavy Rocket Launcher Heavy Rocket Launcher > --- INVENTORY -------- (None) [Rating: 22] Favorites ----------- Power None Propulsion None Utility Launcher Guidance Computer Processor Launcher Guidance Computer Hackware System Shield Protection Improved Power Shielding Weapon Heavy Rocket Launcher Launcher Heavy Rocket Launcher Build | -11 -10 -9 -9 -8 -7 -7 -6 -5 -5 -4 -4 ------- Run | Jun Mat Mat Min Mat Fac DSF Fac Fac DSF Fac Ext Slots Evolved 12 | . . 2 . 2 2 . 2 2 . 2 . Power . | . . . . . . . . . . . . Propulsion . | . . . . . . . . . . . . Utility 12 | . . 2 . 2 2 . 2 2 . 2 . Weapon . | . . . . . . . . . . . . Parts Attached 13 | . . . . 5 . . 3 . . 2 3 Power . | . . . . . . . . . . . . Engine . | . . . . . . . . . . . . Core . | . . . . . . . . . . . . Reactor . | . . . . . . . . . . . . Propulsion . | . . . . . . . . . . . . Treads . | . . . . . . . . . . . . Leg . | . . . . . . . . . . . . Wheel . | . . . . . . . . . . . . Hover . | . . . . . . . . . . . . Flight . | . . . . . . . . . . . . Utility 7 | . . . . 5 . . 1 . . . 1 Device . | . . . . . . . . . . . . Storage . | . . . . . . . . . . . . Processor 5 | . . . . 4 . . . . . . 1 Hackware 1 | . . . . . . . 1 . . . . Protection 1 | . . . . 1 . . . . . . . Artifact . | . . . . . . . . . . . . Weapon 6 | . . . . . . . 2 . . 2 2 Energy Gun . | . . . . . . . . . . . . Energy Cannon . | . . . . . . . . . . . . Ballistic Gun . | . . . . . . . . . . . . Ballistic Cannon . | . . . . . . . . . . . . Launcher 6 | . . . . . . . 2 . . 2 2 Special Weapon . | . . . . . . . . . . . . Impact Weapon . | . . . . . . . . . . . . Slashing Weapon . | . . . . . . . . . . . . Piercing Weapon . | . . . . . . . . . . . . Special Melee Weapon . | . . . . . . . . . . . . Unidentified Prototypes . | . . . . . . . . . . . . Parts Lost 2 | . . . . . . . . . . . 2 Power . | . . . . . . . . . . . . Propulsion . | . . . . . . . . . . . . Utility . | . . . . . . . . . . . . Weapon 2 | . . . . . . . . . . . 2 Highest Loss Streak 2 | . . . . . . . . . . . 2 To Critical Strikes . | . . . . . . . . . . . . Average Slot Usage (%) 16 | . . . . 11 38 38 25 23 23 21 23 Processor 8 | . . . . 3 30 30 13 11 11 10 11 Hackware 2 | . . . . . . . 5 5 5 5 5 Protection 4 | . . . . 8 7 7 6 5 5 5 5 Naked Turns 197 | . 44 6 128 19 . . . . . . . Heaviest Build 2 | . . . . 2 2 2 2 2 2 2 2 Greatest Support 3 | 3 3 3 3 3 3 3 3 3 3 3 3 Greatest Overweight (x) . | . . . . . . . . . . . . Average Overweight (x) . | . . . . . . . . . . . . Largest Inventory Capacity 5 | 5 5 5 5 5 5 5 5 5 5 5 5 Average Capacity 5 | 5 5 5 5 5 5 5 5 5 5 5 5 Most Carried 2 | . . . . 2 2 2 2 2 2 2 2 Average Carried . | . . . . . 2 2 1 2 2 1 . Final Capacity 5 | 5 5 5 5 5 5 5 5 5 5 5 5 Final Carried 2 | . . . . 2 2 2 2 2 2 2 . Class Distribution -------------------- 100% | Mutant Dominant Class ---------------- Mutant | -10/Materials Mutant | -9/Materials Mutant | -9/Mines Mutant | -8/Materials Mutant | -7/Factory Mutant | -7/DSF Mutant | -6/Factory Mutant | -5/Factory Mutant | -5/DSF Mutant | -4/Factory Mutant | -4/Extension Resources | -11 -10 -9 -9 -8 -7 -7 -6 -5 -5 -4 -4 ----------- Run | Jun Mat Mat Min Mat Fac DSF Fac Fac DSF Fac Ext Matter Collected 307 | 144 . . 56 . . . 48 59 . . . Remotely . | . . . . . . . . . . . . Salvage Created 302 | . . . . . . . 96 . . 141 65 Parts 20 | . . . . . . . 9 . . 4 7 Haulers Intercepted . | . . . . . . . . . . . . Recyclers Shooed 1 | . . . . . . . . . . . 1 Parts Field Recycled . | . . . . . . . . . . . . Retrieved Matter . | . . . . . . . . . . . . Parts Self-Destructed . | . . . . . . . . . . . . Prevented . | . . . . . . . . . . . . Kills | -11 -10 -9 -9 -8 -7 -7 -6 -5 -5 -4 -4 ------- Run | Jun Mat Mat Min Mat Fac DSF Fac Fac DSF Fac Ext Combat Hostiles Destroyed 11 | . . . . . . . 7 . . 3 1 AOE 11 | . . . . . . . 7 . . 3 1 Classes Destroyed 4 | . . . . . . . 1 . . 2 1 Worker 1 | . . . . . . . . . . 1 . Watcher 1 | . . . . . . . . . . . 1 Swarmer 7 | . . . . . . . 7 . . . . Grunt 4 | . . . . . . . . . . 3 1 Best Kill Streak 7 | . . . . . . . 7 . . 4 2 Combat Bots Only 7 | . . . . . . . 7 . . 3 1 Max Kills in Single Turn 4 | . . . . . . . 4 . . 4 1 Gunslinging . | . . . . . . . . . . . . Exploded 4 | . . . . . . . 4 . . 3 1 Melee . | . . . . . . . . . . . . Uniques/NPCs Destroyed . | . . . . . . . . . . . . Combat | -11 -10 -9 -9 -8 -7 -7 -6 -5 -5 -4 -4 -------- Run | Jun Mat Mat Min Mat Fac DSF Fac Fac DSF Fac Ext Damage Taken 2273 | . 54 . 262 175 . 151 235 1 71 339 985 Core 2067 | . 54 . 262 169 . 151 195 1 71 231 933 Absorbed by Shields 56 | . . . . . . . . . . . 56 Core Remaining (%) 75 | 100 78 . 34 69 . 78 77 . 92 . . Volleys Fired 8 | . . . . . . . 3 . . 2 3 Largest 2 | . . . . . . . 1 . . 2 2 Hottest 78 | . . . . . . . 39 . . 78 78 Shots Fired 11 | . . . . . . . 3 . . 4 4 Gun . | . . . . . . . . . . . . Cannon . | . . . . . . . . . . . . Launcher 11 | . . . . . . . 3 . . 4 4 Special . | . . . . . . . . . . . . Kinetic . | . . . . . . . . . . . . Thermal . | . . . . . . . . . . . . Explosive 11 | . . . . . . . 3 . . 4 4 Electromagnetic . | . . . . . . . . . . . . Robot Hit Streak 3 | . . . . . . . 1 . . 2 3 Robot Miss Streak 1 | . . . . . . . . . . 1 . Penetration Max . | . . . . . . . . . . . . Secondary Targets . | . . . . . . . . . . . . Shots Hit Robots 4 | . . . . . . . 1 . . 2 1 Core Hits 27 | . . . 1 1 . . 7 1 . 11 6 Critical Kills . | . . . . . . . . . . . . Critical Parts Destroyed . | . . . . . . . . . . . . Critical Strikes . | . . . . . . . . . . . . Melee Attacks . | . . . . . . . . . . . . Impact . | . . . . . . . . . . . . Slashing . | . . . . . . . . . . . . Piercing . | . . . . . . . . . . . . Sneak Attacks . | . . . . . . . . . . . . Combat Hostiles . | . . . . . . . . . . . . Follow-up Attacks . | . . . . . . . . . . . . Damage Inflicted 1722 | . . . 37 13 . . 542 2 . 724 404 Guns . | . . . . . . . . . . . . Cannons . | . . . . . . . . . . . . Explosions 1652 | . . . . . . . 532 . . 719 401 Melee . | . . . . . . . . . . . . Ramming 70 | . . . 37 13 . . 10 2 . 5 3 Kinetic . | . . . . . . . . . . . . Thermal . | . . . . . . . . . . . . Explosive 1652 | . . . . . . . 532 . . 719 401 Electromagnetic . | . . . . . . . . . . . . Impact . | . . . . . . . . . . . . Slashing . | . . . . . . . . . . . . Piercing . | . . . . . . . . . . . . Highest Corruption 1 | . . . . . . . . . . 1 1 Average Corruption 1 | . . . . . . . . . . 1 1 Corruption Purged . | . . . . . . . . . . . . Corruption Blocked . | . . . . . . . . . . . . Effects 3 | . . . . . . . . . . 1 2 Message Errors 1 | . . . . . . . . . . . 1 Matter Fused 1 | . . . . . . . . . . . 1 Data Loss (major) 1 | . . . . . . . . . . 1 . Overload Shots . | . . . . . . . . . . . . Overflow Damage 48 | . . . . . . . . . . 44 4 Projectiles . | . . . . . . . . . . . . Explosions 48 | . . . . . . . . . . 44 4 Melee . | . . . . . . . . . . . . Knockbacks . | . . . . . . . . . . . . Impact . | . . . . . . . . . . . . Kinetic . | . . . . . . . . . . . . Secondary . | . . . . . . . . . . . . Self-Inflicted Damage 86 | . . . 16 6 . . 4 1 . 4 55 Shots 3 | . . . . . . . . . . 1 2 Rammed 18 | . . . 8 2 . . 3 2 . 2 1 Targets Rammed 18 | . . . 8 2 . . 3 2 . 2 1 Kicked . | . . . . . . . . . . . . Crushed . | . . . . . . . . . . . . Highest Temperature 21 | . . . . . . . . . . 21 2 Average Temperature 9 | . . . . . . . . . . 12 2 Received Heat Transfer 519 | . . . 114 99 . . 63 . . 78 165 Siege Activations . | . . . . . . . . . . . . Robots Corrupted . | . . . . . . . . . . . . Combat Hostiles . | . . . . . . . . . . . . Parts Fried . | . . . . . . . . . . . . Impact Corruptions . | . . . . . . . . . . . . Robots Melted . | . . . . . . . . . . . . Combat Hostiles . | . . . . . . . . . . . . Parts Melted . | . . . . . . . . . . . . Heat Transferred . | . . . . . . . . . . . . Parts Sabotaged . | . . . . . . . . . . . . Parts Stolen . | . . . . . . . . . . . . Parts Stripped . | . . . . . . . . . . . . Power Chain Reactions . | . . . . . . . . . . . . Missiles Intercepted . | . . . . . . . . . . . . Alert | -11 -10 -9 -9 -8 -7 -7 -6 -5 -5 -4 -4 ------- Run | Jun Mat Mat Min Mat Fac DSF Fac Fac DSF Fac Ext Peak Influence 386 | . 45 18 36 133 60 45 386 219 153 286 330 Initial 189 | . . 18 6 13 60 45 23 189 153 79 140 Average 111 | . 12 18 22 55 60 45 137 194 153 112 242 Maximum Alert Level 1 | . . . . . . . 1 1 . 1 1 Low Security (%) 81 | 100 100 100 100 100 100 100 73 80 100 85 37 Level 1 18 | . . . . . . . 26 20 . 14 62 Level 2 . | . . . . . . . . . . . . Level 3 . | . . . . . . . . . . . . Level 4 . | . . . . . . . . . . . . Level 5 . | . . . . . . . . . . . . High Security . | . . . . . . . . . . . . Max Security . | . . . . . . . . . . . . Squads Dispatched 8 | . . . . 1 . 1 2 1 . 1 2 Investigation . | . . . . . . . . . . . . Extermination . | . . . . . . . . . . . . Reinforcement 8 | . . . . 1 . 1 2 1 . 1 2 Assault . | . . . . . . . . . . . . Garrison . | . . . . . . . . . . . . Intercept . | . . . . . . . . . . . . Searches Triggered . | . . . . . . . . . . . . Construction Impeded 1 | . . . . . . . . . . . 1 Haulers Reinforced 1 | . . . . . . . . 1 . . . Active Scanning Responses . | . . . . . . . . . . . . Cargo Convoy Interrupts . | . . . . . . . . . . . . Stealth | -11 -10 -9 -9 -8 -7 -7 -6 -5 -5 -4 -4 --------- Run | Jun Mat Mat Min Mat Fac DSF Fac Fac DSF Fac Ext Distress Signals 7 | . 1 . 1 1 . . 3 . . . 1 Communications Jammed . | . . . . . . . . . . . . Distress Signals . | . . . . . . . . . . . . Times Spotted 76 | . 4 . 8 13 . 3 18 1 1 6 22 Peak Tracking Total 15 | . 4 . 6 11 . 3 10 2 1 9 15 Tactical Retreats 11 | . 1 . 1 3 . . 3 1 . 1 1 Traps | -11 -10 -9 -9 -8 -7 -7 -6 -5 -5 -4 -4 ------- Run | Jun Mat Mat Min Mat Fac DSF Fac Fac DSF Fac Ext Traps Triggered 1 | . . . . . . . . . . . 1 Indirectly . | . . . . . . . . . . . . Trap Hack Attempts . | . . . . . . . . . . . . Triggered . | . . . . . . . . . . . . Disarmed . | . . . . . . . . . . . . Reprogrammed . | . . . . . . . . . . . . Reused . | . . . . . . . . . . . . Traps Extracted . | . . . . . . . . . . . . Installed . | . . . . . . . . . . . . Triggered . | . . . . . . . . . . . . Machines | -11 -10 -9 -9 -8 -7 -7 -6 -5 -5 -4 -4 ---------- Run | Jun Mat Mat Min Mat Fac DSF Fac Fac DSF Fac Ext Machines Disabled 3 | . . . . . . . 1 . . 2 . Max in Single Turn 2 | . . . . . . . 1 . . 2 . Machines Repaired . | . . . . . . . . . . . . Machines Sabotaged . | . . . . . . . . . . . . Overloaded Fab Kills . | . . . . . . . . . . . . Hacking | -11 -10 -9 -9 -8 -7 -7 -6 -5 -5 -4 -4 --------- Run | Jun Mat Mat Min Mat Fac DSF Fac Fac DSF Fac Ext Machines Accessed 6 | . . . . . 1 . . 1 . 1 3 Terminals 6 | . . . . . 1 . . 1 . 1 3 Fabricators . | . . . . . . . . . . . . Repair Stations . | . . . . . . . . . . . . Recycling Units . | . . . . . . . . . . . . Scanalyzers . | . . . . . . . . . . . . Garrison Access . | . . . . . . . . . . . . Total Hacks 13 | . . . . . 4 . . 1 . 3 5 Successful 5 | . . . . . 1 . . 1 . . 3 Failed 8 | . . . . . 3 . . . . 3 2 Catastrophic . | . . . . . . . . . . . . Database Lockouts . | . . . . . . . . . . . . Manual 3 | . . . . . . . . . . 3 . Terminals 13 | . . . . . 4 . . 1 . 3 5 Fabricators . | . . . . . . . . . . . . Repair Stations . | . . . . . . . . . . . . Recycling Units . | . . . . . . . . . . . . Scanalyzers . | . . . . . . . . . . . . Garrison Access . | . . . . . . . . . . . . Terminal Hacks 5 | . . . . . 1 . . 1 . . 3 Open Door 3 | . . . . . . . . . . . 3 Open DSF 2 | . . . . . 1 . . 1 . . . Fabricator Hacks . | . . . . . . . . . . . . Repair Station Hacks . | . . . . . . . . . . . . Recycling Unit Hacks . | . . . . . . . . . . . . Scanalyzer . | . . . . . . . . . . . . Garrison Access Hacks . | . . . . . . . . . . . . Unauthorized Hacks . | . . . . . . . . . . . . Terminals . | . . . . . . . . . . . . Fabricators . | . . . . . . . . . . . . Repair Stations . | . . . . . . . . . . . . Recycling Units . | . . . . . . . . . . . . Scanalyzers . | . . . . . . . . . . . . Garrison Access . | . . . . . . . . . . . . Data Cores Recovered . | . . . . . . . . . . . . Used . | . . . . . . . . . . . . Hacking Detections 2 | . . . . . 1 . . . . 1 . Full Trace Events . | . . . . . . . . . . . . Feedback Events . | . . . . . . . . . . . . Feedback Blocked . | . . . . . . . . . . . . Robot Schematics Acquired . | . . . . . . . . . . . . Robots Built . | . . . . . . . . . . . . Authchips . | . . . . . . . . . . . . Time . | . . . . . . . . . . . . Total Robot Build Rating . | . . . . . . . . . . . . Part Schematics Acquired . | . . . . . . . . . . . . Parts Built . | . . . . . . . . . . . . Authchips . | . . . . . . . . . . . . Time . | . . . . . . . . . . . . Total Part Build Rating . | . . . . . . . . . . . . Parts Repaired . | . . . . . . . . . . . . Time . | . . . . . . . . . . . . Parts Recycled . | . . . . . . . . . . . . Recycled Matter . | . . . . . . . . . . . . Retrieved Matter . | . . . . . . . . . . . . Retrieved Components . | . . . . . . . . . . . . Parts Scanalyzed . | . . . . . . . . . . . . Part Schematics Acquired . | . . . . . . . . . . . . Parts Damaged . | . . . . . . . . . . . . Bothacking | -11 -10 -9 -9 -8 -7 -7 -6 -5 -5 -4 -4 ------------ Run | Jun Mat Mat Min Mat Fac DSF Fac Fac DSF Fac Ext Used RIF Installer . | . . . . . . . . . . . . Robots Hacked . | . . . . . . . . . . . . Non-combat . | . . . . . . . . . . . . Combat . | . . . . . . . . . . . . Robot Hacks Applied . | . . . . . . . . . . . . Relay Couplers Released . | . . . . . . . . . . . . Fabnet Peak Effective % . | . . . . . . . . . . . . Robots Rewired . | . . . . . . . . . . . . Allies Hacked . | . . . . . . . . . . . . Hacks Repelled . | . . . . . . . . . . . . Allies | -11 -10 -9 -9 -8 -7 -7 -6 -5 -5 -4 -4 -------- Run | Jun Mat Mat Min Mat Fac DSF Fac Fac DSF Fac Ext Total Allies 2 | . . . . . . . . . . . 2 Largest Group 1 | . . . . . . . . . . . 1 Highest-Rated Group 46 | . . . . . . . . . . . 46 Highest-Rated Ally 46 | . . . . . . . . . . . 46 Total Orders . | . . . . . . . . . . . . Ally Attacks 4 | . . . . . . . . . . . 4 Total Damage 153 | . . . . . . . . . . . 153 Kills . | . . . . . . . . . . . . Allies Corrupted . | . . . . . . . . . . . . Allies Melted . | . . . . . . . . . . . . Intel | -11 -10 -9 -9 -8 -7 -7 -6 -5 -5 -4 -4 ------- Run | Jun Mat Mat Min Mat Fac DSF Fac Fac DSF Fac Ext Robot Analysis Total . | . . . . . . . . . . . . Derelict Logs Recovered 2 | . . . 2 . . . . . . . . Drone Launches . | . . . . . . . . . . . . Drone Recoveries . | . . . . . . . . . . . . Exploration | -11 -10 -9 -9 -8 -7 -7 -6 -5 -5 -4 -4 ------------- Run | Jun Mat Mat Min Mat Fac DSF Fac Fac DSF Fac Ext Turns Passed 727 | 11 44 6 128 108 3 28 131 65 17 63 123 Spaces Moved 1321 | 22 88 12 240 193 5 56 234 125 30 103 213 Core 1321 | 22 88 12 240 193 5 56 234 125 30 103 213 Treads . | . . . . . . . . . . . . Legs . | . . . . . . . . . . . . Wheels . | . . . . . . . . . . . . Hover . | . . . . . . . . . . . . Flight . | . . . . . . . . . . . . Fastest Speed 50 | 50 50 50 50 50 50 50 50 50 50 50 50 Average Speed 50 | 50 50 50 50 50 50 50 50 50 50 50 50 Slowest Speed 50 | 50 50 50 50 50 50 50 50 50 50 50 50 Overloaded Moves . | . . . . . . . . . . . . Propulsion Burnouts . | . . . . . . . . . . . . Robots Hopped . | . . . . . . . . . . . . Cave-ins Triggered . | . . . . . . . . . . . . Exploration Rate (%) 25 | 3 23 2 47 31 . 71 15 4 35 7 47 Regions Visited 11 Branch Regions 2 Pre-discovered Areas . | . . . . . . . . . . . . Known Exits Taken 2 | . . . . . 1 . . 1 . . . Unknown Exits Taken 7 | 1 1 1 1 1 . . 1 . . 1 . Scrap Searched 2 | . . . 2 . . . . . . . . Spaces Dug 39 | . . . . . . . . . . . 39 Terrain Destroyed 87 | . . . . . . . 21 . . 20 46 Melee . | . . . . . . . . . . . . Projectile . | . . . . . . . . . . . . AOE 87 | . . . . . . . 21 . . 20 46 Terrain Rammed . | . . . . . . . . . . . . Walls Destroyed . | . . . . . . . . . . . . Machines Disabled . | . . . . . . . . . . . . Actions | -11 -10 -9 -9 -8 -7 -7 -6 -5 -5 -4 -4 --------- Run | Jun Mat Mat Min Mat Fac DSF Fac Fac DSF Fac Ext Total 1362 | 21 87 11 247 201 4 55 244 126 31 110 225 Wait . | . . . . . . . . . . . . Move 1310 | 21 87 11 239 192 4 55 233 124 29 102 213 Hop . | . . . . . . . . . . . . Pick Up 2 | . . . . 2 . . . . . . . Fast Attach 7 | . . . . 5 . . 1 . . . 1 Attach 6 | . . . . . . . 2 . . 2 2 Detach 4 | . . . . . . . 2 . . 2 . Swap . | . . . . . . . . . . . . Drop . | . . . . . . . . . . . . Fire 8 | . . . . . . . 3 . . 2 3 Melee . | . . . . . . . . . . . . Ram 18 | . . . 8 2 . . 3 2 . 2 1 Kick . | . . . . . . . . . . . . Crush . | . . . . . . . . . . . . Escape Stasis 5 | . . . . . . . . . . . 5 Rewire 2 | . . . . . . . . . 2 . . Trap . | . . . . . . . . . . . . Miscellaneous . | . . . . . . . . . . . . Route ------- -11/Junkyard -10/Materials -9/Materials -9/Mines -8/Materials -7/Factory -7/DSF -6/Factory -5/Factory -5/DSF -4/Factory -4/Extension History --------- Turn | Location | Event 3 | -11/Junkyard | Discovered new exit (range 16) 12 | -11/Junkyard | Entered Materials 50 | -10/Materials | Discovered new exit (range 12) 56 | -10/Materials | Entered another Materials area 56 | -9/Materials | Evolved 2 slots: Utility x2 56 | -9/Materials | Discovered new exit (range 11) 62 | -9/Materials | Entered Mines 76 | -9/Mines | Learned 2 Materials zone layouts 139 | -9/Mines | Core integrity fell below 50% 183 | -9/Mines | Learned Materials trap positions 187 | -9/Mines | Discovered new exit (range 8) 190 | -9/Mines | Entered Materials 190 | -8/Materials | Evolved 2 slots: Utility x2 192 | -8/Materials | Loaded intel: 21 trap records 276 | -8/Materials | Discovered new exit (range 10) 298 | -8/Materials | Entered Factory 298 | -7/Factory | Evolved 2 slots: Utility x2 301 | -7/Factory | Identified exit to DSF 301 | -7/Factory | Entered DSF 310 | -7/DSF | Build established: Mutant 323 | -7/DSF | Discovered new exit (range 14) 325 | -7/DSF | Additional patrols routed to DSF 329 | -7/DSF | Entered Factory 329 | -6/Factory | Evolved 2 slots: Utility x2 451 | -6/Factory | Discovered new exit (range 16) 460 | -6/Factory | Entered another Factory area 460 | -5/Factory | Evolved 2 slots: Utility x2 466 | -5/Factory | Destroyed 7 combat bots 525 | -5/Factory | Identified exit to DSF 525 | -5/Factory | Entered DSF 533 | -5/DSF | Discovered new exit (range 16) 542 | -5/DSF | Entered Factory 542 | -4/Factory | Evolved 2 slots: Utility x2 571 | -4/Factory | Spotted B-86 Titan 601 | -4/Factory | Discovered new exit (range 7) 605 | -4/Factory | Entered Extension 674 | -4/Extension | Rescued a captive Derelict 683 | -4/Extension | Rescued a captive Derelict 684 | -4/Extension | Rescued a captive Derelict 700 | -4/Extension | Spotted B-86 Titan 700 | -4/Extension | Rescued a captive Derelict 700 | -4/Extension | Rescued a captive Derelict 702 | -4/Extension | Core integrity fell below 50% 704 | -4/Extension | Spotted B-86 Titan 717 | -4/Extension | Core integrity fell below 20% 728 | -4/Extension | Destroyed by G-67 Veteran with Field Laser Last Messages --------------- >>Open(Door) Sealed Heavy Doors opened. 00682_ Penetrated by Slug. 00683_ Slug penetrates Wall. 00687_ Acquired Adv. Signal Interpreter. 00699_ Connecting with Door Terminal... >>Open(Door) Sealed Heavy Doors opened. 00703_ Slammed into R-10 Processor. 00703_ Destabilizing: System interference. 00703_ Launcher Guidance Computer temporarily disabled. 00704_ Machine disabled. 00705_ Penetrated by Slug. 00705_ Door Terminal disabled. 00706_ Machine disabled. 00708_ Penetrated by Slug. 00709_ Machine disabled. 00709_ Knocked back. 00709_ Slug penetrates Machine. 00711_ Penetrated by Slug. Map ----- +----------------------------------------------------+ | ?????????????????????????????????????????????????? | | ?????????????????????????????????????????????????? | | ?????????????????????????????????????????????????? | | ?????????????????????????????????????????????????? | | ?????????????????????????????????????????????????? | | ?????????????????????????????????????????????????? | | ?????????????????????????????????????????????????? | | ?????????????????????????????????????????????????? | | ?????????????????????????????????????????????????? | | ?????????????????????????????????????????????????? | | ?????????????????????????????????????????????????? | | ?????????????????????????????????????????????????? | | ?????????????????????????????????????????????????? | | ?????????????????????????????????????????????????? | | ?????????????????????????????????????????????????? | | ?????????????????????????????????????????????????? | | ?????????????????????????????????????????????????? | | ?????????????????????????????????????????????????? | | ?????????????????????????????????????????????????? | | ?????????????????????????????????????????????????? | | ?????????????????????????????????????????????????? | | ?????????????????????????????????????????????????? | | ?????????????????????????????????????????????????? | | ######################################???????????? | | ????????? | | @ g ????????? | | k g ????????? | | gg g ????????? | | g gk kt k ?????????? | | ########################################?????????? | | ?????????????????????????????????????????????????? | | ?????????????????????????????????????????????????? | | ?????????????????????????????????????????????????? | | ?????????????????????????????????????????????????? | | ?????????????????????????????????????????????????? | | ?????????????????????????????????????????????????? | | ?????????????????????????????????????????????????? | | | | | | | | | | | | | | | | | | | | | | | | | | | +----------------------------------------------------+ Best States ------------- Heat Dissipation 43 Energy Generation 5 Energy Capacity 100 Matter Stores 300 Matter Capacity 300 Sight Range 16 Terrain Scan Density 10 Power Shielding 66 Evasion (%) 50 Launcher Accuracy 80 Defensive Hacking 10 Item Schematics ----------------- None Robot Schematics ------------------ None Fabricated ------------ Nothing Alien Tech Used ----------------- None Achievements -------------- None Challenges ------------ None Game ------ Seed WarpDisposableCompressor Manual? 0 Play Time 00:10:01 Cumulative 209.3 hours Start 2023.05.14 @ 17:13:53 End 2023.05.14 @ 17:22:05 Sessions 1 Manual Loads 0 Difficulty Rogue Special Mode None Game No. 606 Rogue 606 Adventurer 0 Explorer 0 Win Type - Total 9 Types 7/0/1/1/0/0/0/0/0 Lore% 81 Gallery% 80 Achievement% 71 Wizard Run 0 Options --------- ASCII 0 Keyboard 0 Movement Numpad Keybinds 0 Fullscreen 1 Font 16/SmallcapsGlow Map View 75x55 Tactical HUD 1 Map Filters NONE Filters NONE Steam 1 RUN: 84b194f1-15e8-4cf7-ab62-d2013843c5db